bitfinex/quotes_SOLUSD_20241101
["timestamp","ask_amount","ask_price","bid_price","bid_amount"]
[1730482650751,0.12549,166.5,166.39,6.2382]
[1730482650960,27.84470013,166.47,166.42,27.84470013]
[1730482651460,0.12549,166.5,166.38,21.0361]
[1730482651651,0.12549,166.48,166.38,15.0258]
[1730482651852,23.902374,166.48,166.38,15.0258]
[1730482652267,23.902374,166.48,166.38,21.0361]
[1730482652769,27.84470013,166.46,166.4,27.84470013]
[1730482654252,27.84470013,166.45,166.4,27.84470013]
[1730482655681,23.902374,166.48,166.39,33.85440013]
[1730482656174,27.84470013,166.45,166.39,33.85440013]
[1730482656751,27.84470013,166.46,166.4,27.84470013]
[1730482656978,6.0078,166.45,166.4,27.84470013]
[1730482657269,6.0078,166.45,166.4,33.85420013]
[1730482658256,27.84470013,166.46,166.4,33.85420013]
[1730482658469,6.0064,166.49,166.4,21.0335]
[1730482658662,0.12549,166.52,166.4,21.0335]
[1730482659072,0.12549,166.52,166.36,64.940974]
[1730482659780,23.902374,166.52,166.36,64.940974]
[1730482659980,6.0049,166.53,166.43,15.08]
[1730482660785,27.84470013,166.51,166.45,27.84470013]
[1730482661479,33.85010013,166.52,166.46,21.026]
[1730482661858,27.84470013,166.52,166.46,21.026]
[1730482662074,33.84960013,166.53,166.48,27.84470013]
[1730482662655,33.84960013,166.53,166.46,21.026]
[1730482662851,33.84960013,166.53,166.47,27.84470013]
[1730482663774,33.84960013,166.53,166.47,33.85160013]
[1730482663974,0.12549,166.52,166.47,27.84470013]
[1730482664168,0.12549,166.52,166.44,12.0571]
[1730482664481,27.97019013,166.52,166.46,27.84470013]
[1730482665583,27.84470013,166.5,166.44,48.87290013]
[1730482665960,21.0172,166.53,166.4,64.04880013]
[1730482666177,23.902374,166.52,166.41,21.0321]
[1730482666374,27.84470013,166.49,166.43,27.84470013]
[1730482667455,21.0197,166.51,166.41,21.0321]
[1730482667860,0.12549,166.49,166.41,21.0321]
[1730482668383,27.84470013,166.48,166.42,27.84470013]
[1730482668783,6.0067,166.48,166.43,27.84470013]
[1730482669375,0.12549,166.47,166.43,27.84470013]
[1730482669590,23.902374,166.47,166.39,16.2598]
[1730482670095,27.84470013,166.45,166.39,50.11440013]
[1730482670860,27.84470013,166.45,166.39,65.13930013]
[1730482671068,6.007,166.48,166.39,37.2946]
[1730482671683,6.007,166.48,166.43,27.84470013]
[1730482672160,6.007,166.48,166.42,42.86680013]
[1730482672357,27.84470013,166.46,166.42,15.0221]
[1730482672778,27.84470013,166.46,166.42,21.0309]
[1730482673083,33.85170013,166.48,166.42,48.87560013]
[1730482673467,27.84470013,166.47,166.42,48.87560013]
[1730482674179,33.85190013,166.47,166.42,48.87560013]
[1730482674766,6.0072,166.47,166.42,21.0309]
[1730482675193,6.0072,166.47,166.42,48.87560013]
[1730482675391,6.0072,166.47,166.42,15.0221]
[1730482675686,27.84470013,166.46,166.4,33.85430013]
[1730482675982,21.0249,166.47,166.39,42.86930013]
[1730482676178,27.84470013,166.44,166.39,15.0246]
[1730482676380,27.84470013,166.45,166.39,27.84470013]
[1730482676582,23.902374,166.46,166.37,33.85520013]
[1730482676784,27.84470013,166.43,166.37,33.85520013]
[1730482677293,27.84470013,166.43,166.38,27.84470013]
[1730482677461,27.84470013,166.44,166.37,21.0372]
[1730482677667,27.84470013,166.44,166.39,27.84470013]
[1730482678161,6.0074,166.46,166.37,21.0372]
[1730482678783,6.0063,166.49,166.37,51.0906]
[1730482679590,6.13179,166.49,166.37,51.0906]
[1730482679889,0.12549,166.48,166.37,21.0372]
[1730482680389,0.12549,166.45,166.4,27.84470013]
[1730482680784,0.12549,166.47,166.37,21.0372]
[1730482681094,27.84470013,166.44,166.38,27.84470013]
[1730482681386,23.776884,166.46,166.38,27.84470013]
[1730482681586,27.84470013,166.43,166.38,33.85490013]
[1730482681793,27.84470013,166.44,166.38,6.0102]
[1730482682267,27.84470013,166.44,166.38,33.85490013]
[1730482683063,6.0085,166.43,166.38,6.0102]
[1730482683269,6.0085,166.43,166.39,27.84470013]
[1730482683685,6.0085,166.43,166.4,27.84470013]
[1730482684581,15.0154,166.5,166.4,21.0336]
[1730482684790,42.86010013,166.5,166.4,48.87830013]
[1730482684972,27.84470013,166.5,166.44,27.84470013]
[1730482685168,6.0049,166.53,166.41,39.358274]
[1730482685372,6.6139205,166.54,166.44,6.3061]
[1730482685675,0.6094205,166.54,166.47,23.902374]
[1730482685873,0.6094205,166.54,166.53,27.84470013]
[1730482686879,0.6094205,166.54,166.53,33.84960013]
[1730482687478,0.6094205,166.54,166.53,28.16678137]
[1730482689292,0.6094205,166.54,166.51,15.0133]
[1730482689468,0.6094205,166.54,166.51,37.17518137]
[1730482690068,0.6094205,166.54,166.51,43.18078137]
[1730482690574,0.6094205,166.54,166.51,21.0189]
[1730482691288,0.6094205,166.54,166.51,43.18078137]
[1730482692192,0.6094205,166.54,166.51,21.0189]
[1730482692501,0.6094205,166.54,166.53,22.16188137]
[1730482692796,0.6094205,166.54,166.52,22.16188137]
[1730482692992,0.6094205,166.54,166.51,15.0133]
[1730482693201,0.6094205,166.54,166.53,22.16188137]
[1730482694391,0.6094205,166.54,166.53,28.16678137]
[1730482694592,0.6094205,166.54,166.53,6.0049]
[1730482694786,0.6094205,166.54,166.53,28.16678137]
[1730482696769,0.6094205,166.54,166.52,28.16708137]
[1730482697176,0.6094205,166.54,166.51,15.0133]
[1730482697477,0.6094205,166.54,166.48,15.4559]
[1730482697478,6.6143205,166.54,166.48,15.4559]
[1730482697810,0.12549,166.53,166.44,21.5438]
[1730482698108,0.12549,166.53,166.45,6.0078]
[1730482698278,6.6143205,166.54,166.45,21.0273]
[1730482699099,0.6094205,166.54,166.46,20.12549]
[1730482699594,0.6094205,166.54,166.53,13.85260731]
[1730482700380,0.6094205,166.54,166.53,19.85750731]
[1730482701479,0.6094205,166.54,166.53,13.85260731]
[1730482701680,0.6094205,166.54,166.52,34.87050731]
[1730482702611,0.6094205,166.54,166.5,30.0291]
[1730482702612,0.6094205,166.54,166.53,22.16435071]
[1730482704893,0.6094205,166.54,166.53,28.16925071]
[1730482707894,0.6094205,166.54,166.53,22.16435071]
[1730482708811,0.6094205,166.54,166.53,28.16925071]
[1730482709508,0.6094205,166.54,166.53,22.16435071]
[1730482709690,0.6094205,166.54,166.51,22.16435071]
[1730482710091,0.6094205,166.54,166.52,22.16435071]
[1730482710912,0.6094205,166.54,166.53,22.16435071]
[1730482711092,0.6094205,166.54,166.52,22.16435071]
[1730482711293,0.6094205,166.54,166.51,22.16435071]
[1730482711612,0.6094205,166.54,166.5,22.16435071]
[1730482711814,0.6094205,166.54,166.5,28.17035071]
[1730482712116,0.6094205,166.54,166.5,43.18535071]
[1730482712321,0.6094205,166.54,166.5,73.21535071]
[1730482712513,0.6094205,166.54,166.5,51.051]
[1730482713011,0.6094205,166.54,166.53,22.16435071]
[1730482714018,0.6094205,166.54,166.53,28.16925071]
[1730482715000,0.6094205,166.54,166.53,67.06633471]
[1730482716090,0.6094205,166.54,166.53,87.06633471]
[1730482716515,0.6094205,166.54,166.53,87.19182471]
[1730482717011,6.001,166.64,166.54,43.902374]
[1730482717605,6.001,166.64,166.6,22.16435071]
[1730482717916,6.001,166.64,166.55,21.0147]
[1730482718123,22.16435071,166.63,166.57,22.16435071]
[1730482720120,6.0016,166.62,166.57,22.16435071]
[1730482720322,28.16595071,166.62,166.56,22.16435071]
[1730482720510,28.16595071,166.62,166.57,22.16435071]
[1730482720693,6.0016,166.62,166.58,22.16435071]
[1730482722507,6.0013,166.63,166.58,22.16435071]
[1730482722829,0.12549,166.62,166.58,22.16435071]
[1730482723122,23.902374,166.62,166.58,22.16435071]
[1730482723324,23.902374,166.62,166.53,15.0123]
[1730482723827,0.12549,166.62,166.53,15.0123]
[1730482724125,22.28984071,166.62,166.56,22.16435071]
[1730482724808,6.002,166.61,166.56,22.16435071]
[1730482724995,6.002,166.61,166.55,6.0041]
[1730482725201,6.002,166.61,166.56,13.84610265]
[1730482728119,19.84810265,166.61,166.55,13.84610265]
[1730482728323,13.84610265,166.61,166.55,13.84610265]
[1730482728511,6.001,166.64,166.52,0.12549]
[1730482728707,6.001,166.64,166.59,13.84610265]
[1730482730227,21.0034,166.64,166.55,21.0139]
[1730482730520,23.902374,166.63,166.55,15.01]
[1730482730903,13.84610265,166.6,166.55,28.85610265]
[1730482731506,23.902374,166.63,166.56,13.84610265]
[1730482732111,19.84770265,166.62,166.56,13.84610265]
[1730482733031,6.0016,166.62,166.55,28.85610265]
[1730482733205,13.84610265,166.6,166.55,28.85610265]
[1730482733404,13.84610265,166.61,166.55,28.85610265]
[1730482733604,13.84610265,166.61,166.55,34.86030265]
[1730482735307,6.0024,166.6,166.56,13.84610265]
[1730482737121,6.0016,166.62,166.57,13.84610265]
[1730482738703,6.0016,166.62,166.58,13.84610265]
[1730482739124,6.0016,166.62,166.57,13.84610265]
[1730482740622,6.0016,166.62,166.54,6.0044]
[1730482740825,6.0016,166.62,166.54,21.0158]
[1730482741410,13.84610265,166.62,166.56,13.84610265]
[1730482741604,13.84610265,166.62,166.56,34.85930265]
[1730482741813,21.0033,166.64,166.56,21.0132]
[1730482742016,34.84940265,166.64,166.56,21.0132]
[1730482742223,34.84940265,166.64,166.58,13.84610265]
[1730482743129,34.84940265,166.64,166.56,21.0132]
[1730482743130,21.0033,166.64,166.56,21.0132]
[1730482743329,0.12549,166.63,166.53,15.012]
[1730482744214,13.84610265,166.62,166.56,13.84610265]
[1730482744426,13.84610265,166.62,166.56,34.85940265]
[1730482744637,6.0002,166.66,166.57,16.5651]
[1730482745211,6.0002,166.66,166.63,13.84610265]
[1730482745828,13.84610265,166.67,166.62,13.84610265]
[1730482746818,21.12249,166.69,166.6,15.0053]
[1730482747433,13.84610265,166.68,166.63,13.84610265]
[1730482747919,19.84520265,166.69,166.64,13.84610265]
[1730482748730,13.84610265,166.68,166.63,13.84610265]
[1730482748927,13.84610265,166.69,166.64,13.84610265]
[1730482749136,5.9988,166.7,166.66,13.84610265]
[1730482749427,0.6094205,166.71,166.68,13.84610265]
[1730482749619,0.6094205,166.71,166.69,13.84610265]
[1730482749828,0.6094205,166.71,166.68,13.84610265]
[1730482750736,0.6094205,166.71,166.67,13.84610265]
[1730482750936,6.6079205,166.71,166.67,13.84610265]
[1730482751230,6.6079205,166.71,166.66,15.0004]
[1730482751433,6.6079205,166.71,166.62,15.0037]
[1730482751618,6.6079205,166.71,166.64,13.84610265]
[1730482751619,13.84610265,166.69,166.64,13.84610265]
[1730482751930,20.45402315,166.71,166.62,15.0037]
[1730482752446,6.6079205,166.71,166.67,13.84610265]
[1730482752653,6.6079205,166.71,166.68,13.84610265]
[1730482753021,6.6079205,166.71,166.65,15.0014]
[1730482753324,13.84610265,166.69,166.64,13.84610265]
[1730482753532,6.6079205,166.71,166.64,13.84610265]
[1730482753734,13.84610265,166.7,166.65,13.84610265]
[1730482753926,20.45402315,166.71,166.61,21.0065]
[1730482754128,13.84610265,166.7,166.65,13.84610265]
[1730482754341,5.9991,166.69,166.65,13.84610265]
[1730482755037,5.9991,166.69,166.64,19.84690265]
[1730482755548,19.83179113,166.7,166.64,19.83379113]
[1730482756042,19.83179113,166.7,166.65,13.83299113]
[1730482756740,5.9988,166.7,166.65,13.83299113]
[1730482757120,5.9988,166.7,166.65,34.83499113]
[1730482757743,19.83179113,166.7,166.65,34.83499113]
[1730482757927,19.83179113,166.7,166.65,28.83449113]
[1730482758137,13.83299113,166.68,166.62,28.83669113]
[1730482758450,13.95848113,166.69,166.63,13.83299113]
[1730482758618,13.83299113,166.69,166.63,13.83299113]
[1730482758820,0.6094205,166.71,166.6,21.9602]
[1730482759014,5.9988,166.7,166.65,13.83299113]
[1730482759435,5.9988,166.7,166.63,15.0033]
[1730482759641,19.83179113,166.7,166.64,13.83299113]
[1730482759849,23.902374,166.69,166.56,43.85159113]
[1730482760021,13.83299113,166.65,166.6,13.83299113]
[1730482760539,13.83299113,166.66,166.6,13.83299113]
[1730482760727,13.83299113,166.65,166.59,13.83299113]
[1730482760926,23.776884,166.69,166.61,13.83299113]
[1730482761133,13.83299113,166.66,166.61,13.83299113]
[1730482761725,23.776884,166.69,166.57,21.0121]
[1730482761726,13.83299113,166.67,166.62,13.83299113]
[1730482761926,13.83299113,166.67,166.57,21.0121]
[1730482761927,5.9998,166.67,166.57,51.0295]
[1730482762123,19.83279113,166.67,166.62,13.83299113]
[1730482762330,19.83209113,166.69,166.64,13.83299113]
[1730482762529,5.9991,166.69,166.57,51.0295]
[1730482762730,13.83299113,166.68,166.63,13.83299113]
[1730482763754,5.9998,166.67,166.63,13.83299113]
[1730482764846,5.9998,166.67,166.61,15.0043]
[1730482764847,13.83299113,166.66,166.61,13.83299113]
[1730482765147,5.9998,166.67,166.58,15.0074]
[1730482765323,5.9998,166.67,166.62,13.83299113]
[1730482765725,5.9998,166.67,166.62,6.0015]
[1730482766047,5.9998,166.67,166.63,13.83299113]
[1730482766728,14.97887202,166.69,166.63,8.85428202]
[1730482767351,6.12459,166.69,166.64,8.85428202]
[1730482767523,14.97887202,166.69,166.64,8.85428202]
[1730482767941,8.85428202,166.68,166.63,8.85428202]
[1730482768148,8.85428202,166.68,166.62,8.85428202]
[1730482768333,0.12549,166.67,166.57,21.0121]
[1730482768532,8.85428202,166.65,166.57,21.0121]
[1730482768733,0.12549,166.67,166.57,21.0121]
[1730482769143,13.96619381,166.67,166.62,13.84070381]
[1730482769350,13.84070381,166.67,166.62,13.84070381]
[1730482769651,5.9991,166.69,166.57,21.0121]
[1730482770153,5.9991,166.69,166.58,43.776884]
[1730482770551,5.9991,166.69,166.64,13.84070381]
[1730482771358,19.83980381,166.69,166.63,19.84190381]
[1730482772353,19.83980381,166.69,166.62,28.84460381]
[1730482772354,5.9991,166.69,166.62,28.84460381]
[1730482772554,13.84070381,166.68,166.62,28.84460381]
[1730482773159,19.84050381,166.67,166.62,13.84070381]
[1730482773345,13.84070381,166.65,166.6,13.84070381]
[1730482773752,13.84070381,166.65,166.6,34.84900381]
[1730482774057,5.9998,166.67,166.6,21.0083]
[1730482774262,19.84050381,166.67,166.62,13.84070381]
[1730482774428,5.9998,166.67,166.6,21.0083]
[1730482774857,5.9998,166.67,166.63,13.83676638]
[1730482775037,5.9998,166.67,166.62,13.83676638]
[1730482775554,13.83676638,166.67,166.62,13.83676638]
[1730482775946,13.96225638,166.68,166.62,13.83676638]
[1730482776343,19.83586638,166.69,166.63,13.83676638]
[1730482777247,5.9991,166.69,166.62,13.83676638]
[1730482777637,13.83676638,166.68,166.62,13.83676638]
[1730482778037,13.83676638,166.67,166.61,19.83836638]
[1730482778540,13.83676638,166.67,166.61,13.83676638]
[1730482778742,13.83676638,166.66,166.6,34.84416638]
[1730482778936,0.12549,166.68,166.6,34.84416638]
[1730482778937,37.73914038,166.68,166.62,13.83676638]
[1730482779347,13.83676638,166.67,166.61,13.83676638]
[1730482779745,37.73914038,166.68,166.62,13.83676638]
[1730482779953,5.9998,166.67,166.62,13.83676638]
[1730482780245,19.83656638,166.67,166.62,13.83676638]
[1730482780643,5.9998,166.67,166.62,13.83676638]
[1730482780963,5.9995,166.68,166.64,13.83676638]
[1730482781646,28.97826638,166.7,166.64,13.83676638]
[1730482781861,5.9991,166.69,166.64,13.83676638]
[1730482782359,19.83586638,166.69,166.64,13.83676638]
[1730482783062,5.9991,166.69,166.62,13.83676638]
[1730482783262,13.83676638,166.67,166.62,13.83676638]
[1730482784263,19.83586638,166.69,166.63,13.83676638]
[1730482785860,5.9991,166.69,166.64,13.83676638]
[1730482786041,5.9991,166.69,166.62,21.0056]
[1730482786245,5.9991,166.69,166.65,13.83676638]
[1730482787263,0.6094205,166.71,166.66,13.83676638]
[1730482787867,6.6078205,166.71,166.67,13.83676638]
[1730482789264,6.6078205,166.71,166.67,8.84993145]
[1730482789765,0.12549,166.68,166.56,35.3997258]
[1730482790073,20.12549,166.66,166.52,21.0176]
[1730482790270,0.12549,166.64,166.56,8.84993145]
[1730482790451,8.84993145,166.6,166.55,8.84993145]
[1730482790767,8.84993145,166.62,166.53,1.04399714]
[1730482790972,0.12549,166.61,166.52,15.0124]
[1730482791155,8.84993145,166.6,166.55,8.84993145]
[1730482791563,8.84993145,166.61,166.55,8.84993145]
[1730482791874,6.0024,166.6,166.55,8.84993145]
[1730482792389,6.0024,166.6,166.54,9.75038901]
[1730482792748,19.85276116,166.6,166.54,14.75081872]
[1730482792946,13.97585116,166.55,166.54,0.90045756]
[1730482793149,73.81093516,166.55,166.54,0.90045756]
[1730482793348,23.902374,166.54,166.43,13.85036116]
[1730482793768,13.85036116,166.49,166.43,13.85036116]
[1730482794165,13.85036116,166.49,166.44,13.85036116]
[1730482794668,23.902374,166.48,166.44,13.85036116]
[1730482794969,43.776884,166.52,166.4,22.5122]
[1730482795148,0.12549,166.51,166.4,22.5122]
[1730482795571,0.12549,166.51,166.36,21.5408]
[1730482795749,0.12549,166.51,166.36,27.5518]
[1730482795949,0.12549,166.48,166.36,27.5518]
[1730482796180,0.12549,166.48,166.36,21.5408]
[1730482797259,6.007,166.47,166.36,42.5792]
[1730482798154,6.007,166.47,166.36,36.5684]
[1730482798352,23.902374,166.46,166.36,21.5408]
[1730482798970,13.85036116,166.43,166.38,13.85036116]
[1730482800054,23.776884,166.42,166.34,7.31223062]
[1730482800264,23.776884,166.44,166.34,7.31223062]
[1730482800457,0.12549,166.43,166.32,28.88116116]
[1730482800656,0.12549,166.43,166.32,29.92533275]
[1730482800857,0.12549,166.43,166.32,16.07497159]
[1730482801073,0.12549,166.43,166.32,15.0308]
[1730482801276,0.12549,166.43,166.32,21.0433]
[1730482801782,0.12549,166.43,166.3,29.50545022]
[1730482801951,23.776884,166.42,166.3,23.23685119]
[1730482802152,0.12549,166.41,166.3,23.23685119]
[1730482802357,23.776884,166.36,166.3,0.90155119]
[1730482802549,0.12549,166.33,166.3,0.90155119]
[1730482803167,20.12549,166.33,166.24,13.85036116]
[1730482803450,0.12549,166.31,166.24,13.85036116]
[1730482803960,0.12549,166.31,166.21,15.0412]
[1730482804672,6.0132,166.3,166.21,15.0412]
[1730482804873,6.0132,166.3,166.19,27.06182736]
[1730482805977,22.24026974,166.29,166.23,22.24026974]
[1730482806276,23.776884,166.29,166.19,22.10482736]
[1730482806680,6.13939,166.28,166.19,22.10482736]
[1730482807065,23.776884,166.27,166.19,16.08772736]
[1730482807367,6.13939,166.28,166.19,22.10492736]
[1730482808079,6.0139,166.28,166.19,22.10492736]
[1730482808758,22.24026974,166.28,166.22,22.24026974]
[1730482809659,6.0128,166.31,166.19,22.10492736]
[1730482809862,23.902374,166.3,166.19,22.10492736]
[1730482810378,23.902374,166.3,166.19,23.2849971]
[1730482810691,6.0143,166.27,166.19,22.24026974]
[1730482810976,6.0132,166.3,166.23,22.24026974]
[1730482811380,28.25306974,166.32,166.23,22.24026974]
[1730482811555,6.0114,166.35,166.2,20.12549]
[1730482811760,6.0114,166.35,166.22,20.12549]
[1730482811967,6.0114,166.35,166.25,22.6423]
[1730482812275,22.36575974,166.34,166.25,22.6423]
[1730482812571,22.36575974,166.34,166.24,22.24026974]
[1730482812777,6.0121,166.33,166.24,22.24026974]
[1730482813079,23.902374,166.32,166.24,22.24026974]
[1730482813289,23.902374,166.32,166.23,22.24026974]
[1730482813762,6.011,166.36,166.24,43.902374]
[1730482814780,28.25126974,166.36,166.24,43.902374]
[1730482815384,28.25126974,166.36,166.26,0.12549]
[1730482815565,28.25126974,166.36,166.26,43.902374]
[1730482815757,28.25126974,166.36,166.26,23.902374]
[1730482815961,6.011,166.36,166.29,22.24026974]
[1730482816592,0.12549,166.38,166.3,6.0132]
[1730482816889,22.24026974,166.37,166.31,22.24026974]
[1730482817481,29.786784,166.39,166.3,27.463]
[1730482817482,0.12549,166.38,166.3,27.463]
[1730482818069,22.24026974,166.37,166.31,22.24026974]
[1730482818678,28.25116974,166.37,166.31,28.25296974]
[1730482819188,6.0109,166.37,166.31,6.0127]
[1730482819694,6.0109,166.37,166.3,12.4298]
[1730482819894,6.0109,166.37,166.28,6.0139]
[1730482820076,23.776884,166.36,166.28,21.0487]
[1730482820279,22.24026974,166.33,166.26,6.3912]
[1730482820470,6.0125,166.32,166.26,6.3912]
[1730482820668,6.0125,166.32,166.25,37.1611]
[1730482821396,28.25276974,166.32,166.26,22.24026974]
[1730482821886,23.902374,166.31,166.26,22.24026974]
[1730482822087,23.902374,166.31,166.24,22.24026974]
[1730482822319,23.902374,166.31,166.18,6.293]
[1730482822592,23.902374,166.31,166.19,21.0602]
[1730482822799,23.776884,166.29,166.19,21.0602]
[1730482823302,22.24026974,166.28,166.22,22.24026974]
[1730482824085,23.776884,166.29,166.22,22.24026974]
[1730482824282,6.0139,166.28,166.22,28.25606974]
[1730482824790,28.25416974,166.28,166.22,28.25606974]
[1730482825297,6.0139,166.28,166.23,22.24026974]
[1730482825496,28.25416974,166.28,166.22,22.24026974]
[1730482825874,6.0139,166.28,166.21,15.0405]
[1730482826195,22.24026974,166.27,166.21,37.28076974]
[1730482826783,6.0139,166.28,166.21,15.0405]
[1730482827090,13.9043874,166.27,166.22,19.9204874]
[1730482827490,13.9043874,166.27,166.22,34.9607874]
[1730482827704,6.0136,166.29,166.22,21.0564]
[1730482828070,19.9179874,166.29,166.24,13.9043874]
[1730482828275,23.776884,166.31,166.22,21.0563]
[1730482828476,23.776884,166.31,166.23,13.9043874]
[1730482828477,13.9043874,166.29,166.23,13.9043874]
[1730482829596,19.9182874,166.29,166.23,19.9198874]
[1730482829805,29.789984,166.31,166.23,21.0549]
[1730482830496,13.9043874,166.3,166.25,13.9043874]
[1730482830999,23.902374,166.29,166.25,13.9043874]
[1730482831383,23.902374,166.29,166.2,6.0165]
[1730482832180,13.9043874,166.26,166.2,19.9208874]
[1730482832398,13.9043874,166.26,166.2,34.9629874]
[1730482833409,6.0146,166.27,166.2,21.0586]
[1730482834099,19.9189874,166.27,166.21,13.9043874]
[1730482834482,19.9189874,166.27,166.22,6.0161]
[1730482834894,19.9189874,166.27,166.22,19.9204874]
[1730482835099,6.0146,166.27,166.22,19.9204874]
[1730482835282,6.0146,166.27,166.22,13.9043874]
[1730482835606,23.902374,166.26,166.22,13.9043874]
[1730482836282,23.902374,166.26,166.18,6.0175]
[1730482836904,6.015,166.25,166.18,6.0175]
[1730482837101,19.9193874,166.25,166.19,13.9043874]
[1730482837791,6.015,166.25,166.2,13.9043874]
[1730482839715,13.9043874,166.26,166.2,34.9629874]
[1730482840011,20.0,166.3,166.2,21.0586]
[1730482840404,13.9043874,166.25,166.2,21.0586]
[1730482841304,6.015,166.26,166.2,21.0586]
[1730482841992,6.015,166.26,166.21,13.9043874]
[1730482842309,6.015,166.26,166.21,19.9206874]
[1730482842482,6.015,166.26,166.21,6.0163]
[1730482842689,6.015,166.26,166.21,19.9206874]
[1730482842895,6.015,166.26,166.21,34.9618874]
[1730482843119,6.015,166.26,166.22,13.9043874]
[1730482843708,6.015,166.26,166.21,34.9618874]
[1730482844287,6.015,166.26,166.22,13.9043874]
[1730482845392,13.9043874,166.27,166.22,13.9043874]
[1730482845687,6.0138,166.29,166.18,51.1487]
[1730482845893,6.0138,166.29,166.24,13.9043874]
[1730482846116,13.9043874,166.3,166.24,13.9043874]
[1730482846516,13.9043874,166.3,166.25,21.0525]
[1730482846806,6.0114,166.35,166.25,36.831]
[1730482847197,0.12549,166.34,166.25,36.831]
[1730482847385,6.0111,166.36,166.25,36.831]
[1730482848003,19.9154874,166.36,166.3,13.9043874]
[1730482848303,13.9043874,166.36,166.3,13.9043874]
[1730482848498,13.9043874,166.36,166.31,27.0635]
[1730482849011,6.0089,166.42,166.31,27.0635]
[1730482850097,29.910474,166.44,166.31,36.0829]
[1730482850604,13.9043874,166.4,166.35,13.9043874]
[1730482851489,13.9043874,166.41,166.35,19.9154874]
[1730482852617,19.9137874,166.41,166.35,19.9154874]
[1730482854390,19.9137874,166.41,166.35,34.9439874]
[1730482854594,13.9043874,166.41,166.35,34.9439874]
[1730482854895,6.0088,166.43,166.35,21.0396]
[1730482855096,23.902374,166.42,166.35,15.0285]
[1730482855914,23.902374,166.42,166.32,21.0437]
[1730482856092,13.9043874,166.38,166.33,13.9043874]
[1730482856504,19.9146874,166.38,166.33,13.9043874]
[1730482856702,6.0103,166.38,166.32,21.0436]
[1730482857201,6.0103,166.38,166.34,13.9043874]
[1730482858396,13.9043874,166.39,166.34,13.9043874]
[1730482858596,6.01,166.39,166.34,6.0116]
[1730482859002,23.902374,166.42,166.35,13.9043874]
[1730482859215,6.0092,166.41,166.35,13.9043874]
[1730482859409,19.9135874,166.41,166.34,21.041]
[1730482859597,13.9043874,166.4,166.35,13.9043874]
[1730482860017,29.786784,166.39,166.35,13.9043874]
[1730482860326,0.12549,166.38,166.31,51.1148]
[1730482860624,13.9043874,166.37,166.32,13.9043874]
[1730482861224,23.902374,166.36,166.32,13.9043874]
[1730482861521,23.902374,166.36,166.31,15.0319]
[1730482861816,23.902374,166.36,166.3,6.0131]
[1730482862016,13.9043874,166.34,166.29,19.9178874]
[1730482862219,13.9043874,166.34,166.29,13.9043874]
[1730482862426,13.9043874,166.34,166.29,28.9382874]
[1730482862598,23.902374,166.34,166.29,21.0474]
[1730482863010,23.902374,166.34,166.29,34.9517874]
[1730482863603,43.8187614,166.34,166.29,34.9517874]
[1730482864612,43.8187614,166.34,166.29,13.9043874]
[1730482864919,6.0104,166.38,166.28,52.02018396]
[1730482865235,0.12549,166.37,166.28,21.95048396]
[1730482865606,13.9043874,166.35,166.29,13.9043874]
[1730482866320,13.9043874,166.35,166.28,21.95048396]
[1730482866515,13.9043874,166.36,166.28,21.95048396]
[1730482866720,23.776884,166.35,166.28,21.95048396]
[1730482867022,19.9154874,166.36,166.28,21.95048396]
[1730482867228,19.9153874,166.36,166.28,21.95048396]
[1730482867428,6.011,166.36,166.31,13.9043874]
[1730482868412,6.011,166.36,166.31,19.9170874]
[1730482868719,0.12549,166.35,166.28,30.97148396]
[1730482869023,13.9043874,166.34,166.29,21.0474]
[1730482869425,37.8067614,166.35,166.29,21.0474]
[1730482870105,23.902374,166.35,166.31,13.9043874]
[1730482871129,23.902374,166.35,166.29,21.0474]
[1730482871421,6.0117,166.34,166.29,21.0474]
[1730482871603,6.0117,166.34,166.29,34.9517874]
[1730482871810,19.9160874,166.34,166.29,34.9517874]
[1730482872010,19.9160874,166.34,166.29,28.9382874]
[1730482872198,23.902374,166.33,166.29,13.9043874]
[1730482872601,23.902374,166.33,166.28,0.90178396]
[1730482873204,23.776884,166.31,166.28,0.90178396]
[1730482873396,37.6812714,166.31,166.28,0.90178396]
[1730482874117,23.776884,166.31,166.28,0.90178396]
[1730482874702,0.12549,166.3,166.28,0.90178396]
[1730482875407,6.0135,166.29,166.28,0.90178396]
[1730482877131,0.12549,166.3,166.28,0.90178396]
[1730482877323,23.776884,166.31,166.28,0.90178396]